bitfinex/quotes_ETHUSD_20240701
["timestamp","ask_amount","ask_price","bid_price","bid_amount"]
[1719838756655,1.57758,3476.4,3476.2,1.014]
[1719838757454,1.02758,3476.4,3476.2,1.014]
[1719838758879,2.3904,3476.3,3475.0,1.889]
[1719838759048,2.9404,3476.3,3475.6,1.014]
[1719838759247,0.72636983,3476.2,3475.6,1.014]
[1719838759490,0.55,3476.1,3475.6,1.014]
[1719838762691,7.6308905,3476.5,3475.8,1.014]
[1719838763100,0.55,3476.4,3475.8,1.014]
[1719838765212,7.6308905,3476.5,3476.0,1.014]
[1719838765386,7.33,3476.5,3476.0,1.014]
[1719838765708,2.2826,3476.6,3476.0,1.014]
[1719838765919,0.55,3476.5,3476.0,1.014]
[1719838766109,3.0,3476.5,3476.0,1.014]
[1719838766517,2.2826,3476.6,3476.0,1.014]
[1719838768438,3.0,3476.8,3476.2,1.014]
[1719838768617,3.0,3476.8,3476.0,0.2903]
[1719838768618,9.7232,3476.9,3476.4,1.014]
[1719838777945,2.4126,3476.6,3475.4,1.889]
[1719838778154,0.55,3476.5,3475.7,1.014]
[1719838778958,0.55,3476.5,3475.9,1.014]
[1719838779553,0.30088082,3476.8,3476.1,1.014]
[1719838779957,9.6254,3476.9,3476.1,1.014]
[1719838780133,0.55,3476.8,3476.1,1.014]
[1719838781957,2.56619532,3476.7,3475.9,1.014]
[1719838782166,1.07470643,3476.6,3475.9,1.014]
[1719838784779,2.2828,3476.4,3475.8,1.014]
[1719838787845,0.55,3476.5,3476.0,1.014]
[1719838788387,0.55,3476.8,3476.2,1.014]
[1719838790495,0.20928409,3476.7,3476.2,1.014]
[1719838790696,0.55,3476.6,3476.2,1.014]
[1719838791192,0.55,3476.7,3476.2,1.014]
[1719838791849,9.92776901,3476.9,3476.2,1.014]
[1719838792045,9.92776901,3476.9,3476.4,1.014]
[1719838792284,7.33,3476.9,3476.6,1.014]
[1719838795398,2.2991,3477.1,3476.6,1.014]
[1719838798898,3.56201,3477.1,3475.8,1.889]
[1719838799069,3.09016979,3477.0,3475.8,1.889]
[1719838799273,0.20927908,3476.9,3476.3,1.014]
[1719838799478,0.46539355,3476.8,3476.3,1.014]
[1719838800704,2.4194,3476.6,3476.0,1.014]
[1719838801354,2.4194,3476.6,3476.2,1.014]
[1719838803703,2.4194,3476.6,3475.8,1.889]
[1719838803912,2.4194,3476.6,3476.0,1.014]
[1719838804497,2.76287936,3476.6,3476.0,1.014]
[1719838804722,0.75930448,3476.5,3475.6,1.889]
[1719838804896,0.55,3476.5,3475.9,1.014]
[1719838805274,0.55,3476.5,3475.2,1.889]
[1719838805572,2.4271,3476.3,3475.8,1.014]
[1719838807317,2.75915794,3476.3,3475.2,1.889]
[1719838807474,2.75915794,3476.3,3475.7,1.014]
[1719838809002,0.55,3476.2,3475.7,1.014]
[1719838809194,0.522,3476.2,3475.7,1.014]
[1719838810325,0.522,3476.2,3475.6,1.014]
[1719838811284,9.7275,3476.6,3476.1,1.014]
[1719838811483,9.7275,3476.6,3475.8,1.889]
[1719838811484,2.3975,3476.6,3476.3,1.014]
[1719838811897,2.3975,3476.6,3476.2,1.014]
[1719838815748,5.3792,3476.9,3476.2,1.014]
[1719838815961,0.20928044,3476.8,3476.2,1.014]
[1719838816096,5.3792,3476.9,3476.8,1.014]
[1719838816496,5.3792,3476.9,3476.6,1.014]
[1719838816497,2.3792,3476.9,3476.6,1.014]
[1719838820755,2.3792,3476.9,3476.4,1.014]
[1719838821106,2.61712,3476.9,3475.8,1.889]
[1719838821326,0.75927503,3476.8,3476.2,1.014]
[1719838821651,0.85085909,3476.8,3476.2,1.014]
[1719838822944,2.60538196,3476.7,3475.6,0.144]
[1719838823150,2.3961,3476.5,3475.6,0.144]
[1719838823347,2.3961,3476.5,3475.9,1.014]
[1719838831864,2.3961,3476.5,3476.1,1.014]
[1719838835299,2.49529954,3476.4,3475.9,1.014]
[1719838835578,2.49529954,3476.4,3475.6,0.144]
[1719838835579,2.59052995,3476.4,3475.6,0.144]
[1719838835780,0.55,3476.3,3475.8,1.014]
[1719838836485,0.55,3476.3,3476.0,1.014]
[1719838836670,2.286,3476.4,3476.2,1.014]
[1719838837656,3.0,3476.7,3476.2,1.014]
[1719838837859,2.55235909,3476.8,3476.2,1.014]
[1719838838184,2.55235909,3476.8,3475.7,1.889]
[1719838838185,3.20928467,3476.7,3476.4,1.014]
[1719838838383,3.0,3476.7,3476.4,1.014]
[1719838839882,3.0,3476.7,3476.0,0.2575305]
[1719838839883,3.0,3476.7,3476.6,1.014]
[1719838840489,2.2515,3476.8,3476.6,1.014]
[1719838841755,3.0,3477.4,3476.6,1.014]
[1719838841979,2.3208,3477.0,3476.6,1.014]
[1719838842289,0.20926587,3476.9,3476.6,1.014]
[1719838842450,2.3208,3477.0,3476.6,1.014]
[1719838856016,3.0,3477.2,3476.8,1.014]
[1719838856017,5.357,3477.2,3476.8,1.014]
[1719838856190,2.357,3477.2,3477.0,1.014]
[1719838859586,0.85084464,3477.3,3477.0,1.014]
[1719838859781,3.85084464,3477.3,3477.2,1.014]
[1719838860016,3.0,3477.3,3477.2,1.014]
[1719838860325,0.75,3478.7,3477.0,1.014]
[1719838860326,3.0,3477.6,3477.0,1.014]
[1719838860481,3.0,3477.6,3476.7,2.93372914]
[1719838860482,5.3398,3477.6,3476.7,2.93372914]
[1719838860677,5.3398,3477.6,3476.1,2.87675]
[1719838860678,1.65527939,3478.5,3477.6,1.889]
[1719838860923,2.3398,3478.9,3478.4,1.014]
[1719838861217,0.30062968,3478.7,3478.4,1.014]
[1719838861519,2.3398,3478.9,3478.3,1.014]
[1719838861726,0.20916173,3478.8,3478.3,1.014]
[1719838861892,0.49412821,3478.7,3478.3,1.014]
[1719838862214,0.2849665,3478.7,3478.3,1.014]
[1719838863398,0.55,3478.6,3478.3,1.014]
[1719838863686,0.55,3478.6,3478.5,1.014]
[1719838863913,0.55,3478.7,3478.5,1.014]
[1719838864084,1.16905032,3478.7,3478.3,1.014]
[1719838864284,1.16905032,3478.7,3477.6,4.76454]
[1719838864485,0.55,3478.7,3478.3,1.014]
[1719838865998,2.64050324,3478.9,3478.3,1.014]
[1719838866234,0.30070324,3478.9,3478.7,1.014]
[1719838866416,2.2939,3479.3,3478.7,1.014]
[1719838866731,0.30067033,3479.2,3478.9,1.014]
[1719838866915,0.25945703,3479.1,3478.9,1.014]
[1719838867426,0.30067033,3479.2,3478.9,1.014]
[1719838867732,2.4936,3479.8,3479.1,1.014]
[1719838868200,2.79422726,3479.8,3479.1,1.014]
[1719838868599,3.0,3479.7,3479.1,1.014]
[1719838869035,0.55,3479.6,3478.2,1.889]
[1719838869194,0.63442273,3479.5,3478.8,1.014]
[1719838869396,0.55,3479.4,3478.8,1.014]
[1719838869804,0.55,3479.4,3478.3,0.763926]
[1719838870522,2.3444,3479.3,3477.8,4.76436]
[1719838870829,2.3444,3479.3,3477.8,7.19736]
[1719838871015,0.55,3479.2,3477.8,7.19736]
[1719838871216,0.55,3479.2,3477.8,4.322]
[1719838871419,0.55,3479.2,3477.9,0.4322]
[1719838871609,0.55,3479.2,3478.0,2.8752]
[1719838872232,0.55,3479.2,3477.9,0.4322]
[1719838872533,0.55,3479.2,3477.6,2.87551]
[1719838872534,2.4153,3479.1,3477.6,2.87551]
[1719838872718,0.55,3479.0,3477.6,2.87551]
[1719838872918,0.55,3479.0,3477.7,2.87545]
[1719838872919,3.55,3479.0,3477.7,2.87545]
[1719838873120,3.55,3479.0,3477.5,5.30857]
[1719838873333,3.55,3479.0,3477.7,0.144]
[1719838873503,0.59653,3478.9,3477.7,0.144]
[1719838873698,0.55,3478.8,3477.7,0.144]
[1719838875018,0.55,3478.8,3477.8,2.87538]
[1719838875822,0.55,3478.8,3477.8,2.93288103]
[1719838876417,0.55,3478.9,3478.0,2.433]
[1719838876795,3.55,3479.0,3478.0,2.433]
[1719838877023,3.0,3478.9,3478.0,2.433]
[1719838877496,4.44653,3479.0,3478.0,2.433]
[1719838881157,4.44653,3479.0,3478.0,5.36569756]
[1719838881310,4.44653,3479.0,3478.0,5.3082]
[1719838882310,4.44653,3479.0,3478.1,2.87512]
[1719838885943,3.0,3479.0,3478.2,1.01299075]
[1719838886133,2.4153,3479.1,3478.0,2.433]
[1719838886134,2.4153,3479.1,3478.0,5.30818]
[1719838886655,3.0,3479.3,3478.4,2.87483]
[1719838887934,3.0,3479.3,3478.2,2.87498]
[1719838888135,3.0,3479.3,3478.2,3.882196]
[1719838888375,3.0,3479.3,3478.4,2.87487]
[1719838889391,3.0,3479.3,3478.2,3.882196]
[1719838889392,3.0,3479.3,3478.2,6.757176]
[1719838889536,3.0,3479.3,3478.2,3.882196]
[1719838890739,3.0,3479.3,3478.2,6.757166]
[1719838890942,3.0,3479.3,3478.3,3.7939766]
[1719838891879,3.0,3479.3,3478.8,1.014]
[1719838893779,3.0,3479.3,3478.4,1.889]
[1719838893979,3.0,3479.3,3478.8,1.014]
[1719838898286,5.2132,3479.4,3479.2,1.014]
[1719838898287,2.3632,3479.4,3479.2,1.014]
[1719838898441,2.4308,3480.2,3479.2,1.014]
[1719838898645,2.4308,3480.0,3479.4,1.014]
[1719838898874,0.55,3479.9,3479.4,1.014]
[1719838899268,0.55,3479.9,3479.6,1.014]
[1719838900288,3.55,3479.9,3479.6,1.014]
[1719838901589,3.55,3479.9,3479.4,1.014]
[1719838902197,3.55,3479.9,3479.1,1.014]
[1719838902489,3.55,3479.9,3479.1,1.45558183]
[1719838903253,3.55,3479.9,3479.5,1.014]
[1719838903254,0.55,3479.9,3479.5,1.014]
[1719838903457,0.30061725,3480.1,3479.7,1.014]
[1719838903659,0.30061725,3480.1,3479.9,1.014]
[1719838904361,0.30061725,3480.1,3479.9,1.402781]
[1719838905459,0.30061725,3480.1,3479.9,4.276401]
[1719838906104,0.30061725,3480.1,3479.9,1.402781]
[1719838907104,0.30061725,3480.1,3479.4,4.76299]
[1719838907395,0.30061725,3480.1,3479.7,1.014]
[1719838907595,0.30061725,3480.1,3479.4,1.889]
[1719838907804,0.30061725,3480.1,3479.6,1.014]
[1719838907970,0.30061725,3480.1,3479.7,0.2903]
[1719838908498,2.4516,3480.0,3479.1,2.33058183]
[1719838908721,2.4516,3480.0,3479.1,0.44158183]
[1719838908861,2.4516,3480.0,3479.2,1.014]
[1719838909289,2.4516,3480.0,3478.7,1.889]
[1719838909610,3.4656,3480.0,3479.1,1.014]
[1719838909790,3.4656,3480.0,3478.8,0.476369]
[1719838909791,2.4516,3480.0,3478.8,0.476369]
[1719838910589,0.55,3479.9,3478.8,0.476369]
[1719838910797,2.4204,3479.8,3478.9,0.2365369]
[1719838910992,2.4204,3479.8,3478.4,4.76384]
[1719838911219,0.55,3479.7,3478.4,4.76384]
[1719838911913,0.55,3479.7,3478.4,1.889]
[1719838913688,0.55,3479.7,3478.4,4.76388]
[1719838914088,0.55,3479.7,3478.5,2.8748]
[1719838914305,0.55,3479.7,3478.6,0.56828166]
[1719838914823,0.55,3479.7,3478.4,1.889]
[1719838915130,0.55,3479.7,3478.5,2.8748]
[1719838915492,2.4204,3479.8,3478.4,4.76381]
[1719838915493,2.4204,3479.8,3478.6,0.0574845]
[1719838915719,0.30061725,3480.1,3478.7,1.889]
[1719838915922,3.30061725,3480.1,3479.0,2.8743]
[1719838916127,3.30061725,3480.1,3478.8,2.87454]
[1719838916128,3.30061725,3480.1,3479.1,3.50665828]
[1719838916348,3.30061725,3480.1,3479.2,2.87417]
[1719838916692,3.30061725,3480.1,3479.1,0.574884]
[1719838917230,3.30061725,3480.1,3479.1,2.8743]
[1719838917943,3.30061725,3480.1,3478.9,2.8744]
[1719838918147,3.30061725,3480.1,3478.7,1.889]
[1719838918848,3.30061725,3480.1,3479.0,2.87432]
[1719838919005,3.30061725,3480.1,3478.8,2.87448]
[1719838919337,3.30061725,3480.1,3478.9,0.719548]
[1719838919645,3.30061725,3480.1,3479.0,2.87437]
[1719838920308,3.30061725,3480.1,3479.1,2.87427]
[1719838921814,3.30061725,3480.1,3478.9,3.593958]
[1719838922208,3.30061725,3480.1,3479.1,2.87425]
[1719838922442,3.30061725,3480.1,3479.2,0.6468208]
[1719838923906,3.30061725,3480.1,3479.2,3.5210308]
[1719838924407,3.30061725,3480.1,3479.3,0.05747435]
[1719838924949,0.30061725,3480.1,3479.4,2.87405]
[1719838925152,0.30061725,3480.1,3479.5,2.93143941]
[1719838925362,0.30061725,3480.1,3479.6,0.48204394]
[1719838926363,0.30061725,3480.1,3479.7,0.05746802]
[1719838926516,0.30061725,3480.1,3479.6,0.48204394]
[1719838926723,0.30061725,3480.1,3480.0,2.87356]
[1719838928225,0.30061725,3480.1,3479.9,2.87362]
[1719838928226,0.30061725,3480.1,3479.8,2.87367]
[1719838928523,0.30061725,3480.1,3479.9,0.62294839]
[1719838929464,0.30061725,3480.1,3479.9,3.49655839]
[1719838929839,0.30061725,3480.1,3479.9,0.62294839]
[1719838930630,0.30061725,3480.1,3479.6,0.48204394]
[1719838933429,0.30061725,3480.1,3479.1,2.87423]
[1719838933631,0.30061725,3480.1,3479.3,2.87413]
[1719838935067,0.30061725,3480.1,3479.1,2.87423]
[1719838935265,0.30061725,3480.1,3479.2,2.87421]
[1719838935472,0.30061725,3480.1,3479.1,2.87423]
[1719838935640,0.30061725,3480.1,3479.2,1.006969]
[1719838936666,0.30061725,3480.1,3479.2,3.881179]
[1719838937956,0.30061725,3480.1,3479.6,1.013]
[1719838938135,0.30061725,3480.1,3479.8,1.013]
[1719838939329,0.30061725,3480.1,3480.0,1.013]
[1719838939844,0.30061725,3480.1,3479.9,0.05746729]
[1719838940054,0.30061725,3480.1,3479.6,7.19286]
[1719838940377,0.30061725,3480.1,3479.7,0.719286]
[1719838940599,0.30061725,3480.1,3480.0,2.87356]
[1719838940952,0.30061725,3480.1,3479.8,4.319]
[1719838940953,0.30061725,3480.1,3479.8,7.19265]
[1719838941166,0.30061725,3480.1,3479.9,2.87363]
[1719838941508,0.30061725,3480.1,3480.0,2.87356]
[1719838941802,0.30061725,3480.1,3480.0,3.9521076]
[1719838942104,0.30061725,3480.1,3480.0,1.0785476]
[1719838942377,0.30061725,3480.1,3479.7,2.8738]
[1719838942577,0.30061725,3480.1,3479.8,2.87371]
[1719838943687,0.30061725,3480.1,3479.9,2.87359]
[1719838943843,0.30061725,3480.1,3479.9,5.74716]
[1719838944052,0.30061725,3480.1,3480.0,2.87356]
[1719838944273,0.30061725,3480.1,3480.0,3.448273]
[1719838944810,0.30061725,3480.1,3480.0,0.574713]
[1719838945551,0.30061725,3480.1,3480.0,3.448273]
[1719838945953,0.30061725,3480.1,3480.0,0.574713]
[1719838946950,2.34928726,3480.7,3480.0,0.574713]
[1719838947359,2.34928726,3480.7,3480.1,0.3448353]
[1719838947565,2.34928726,3480.7,3480.0,0.574713]
[1719838951599,2.34928726,3480.7,3480.0,3.448263]
[1719838952305,0.00742876,3480.5,3480.0,3.448263]
[1719838953706,0.00742876,3480.5,3480.1,0.05746082]
[1719838954086,0.00742876,3480.5,3480.1,2.93092082]
[1719838954301,0.00742876,3480.5,3480.2,0.63791838]
[1719838954480,0.00742876,3480.5,3480.3,0.05745906]
[1719838955390,0.00742876,3480.5,3480.3,2.87327]
[1719838955791,0.00742876,3480.5,3480.1,5.74687]
[1719838955990,0.00742876,3480.5,3480.2,2.87336]
[1719838956191,0.00742876,3480.5,3480.3,0.763577]
[1719838956592,0.00742876,3480.5,3480.3,3.636887]
[1719838957699,2.26062876,3480.5,3480.3,0.763577]
[1719838957906,2.26062876,3480.5,3479.8,2.87365]
[1719838958107,2.26062876,3480.5,3479.9,2.87359]
[1719838961819,2.26062876,3480.5,3480.0,2.8735]
[1719838962119,2.26062876,3480.5,3479.9,2.87359]
[1719838962322,2.26062876,3480.5,3480.0,3.262169]
[1719838962652,2.26062876,3480.5,3480.1,2.87347]
[1719838962929,2.26062876,3480.5,3480.0,0.388659]
[1719838963720,2.26062876,3480.5,3480.0,3.262199]
[1719838964311,2.26062876,3480.5,3480.0,3.262169]
[1719838964513,2.26062876,3480.5,3480.1,0.4275169]
[1719838965428,2.26062876,3480.5,3480.2,2.93081181]
[1719838965593,0.00742876,3480.5,3480.2,3.94381181]
[1719838965817,0.00742876,3480.5,3480.3,0.05745887]
[1719838966020,0.00742876,3480.5,3480.4,0.43713258]
[1719838968244,0.00742876,3480.5,3480.4,6.18359258]
[1719838968561,0.00742876,3480.5,3480.4,7.19659258]
[1719838970054,0.00742876,3480.5,3480.4,6.18359258]
[1719838970365,0.00742876,3480.5,3480.4,7.19659258]
[1719838972268,0.1203615,3481.1,3480.8,2.87283]
[1719838972479,0.1203615,3481.1,3480.9,0.6320313]
[1719838973040,0.1203615,3481.1,3480.9,3.5048213]
[1719838973659,0.1203615,3481.1,3481.0,1.013]
[1719838974462,0.1203615,3481.1,3481.0,3.88573]
[1719838974625,0.1203615,3481.1,3481.0,3.94317653]
[1719838974829,0.1203615,3481.1,3481.0,4.68223158]
[1719838975243,0.1203615,3481.1,3481.0,3.61178505]
[1719838975480,0.1203615,3481.1,3481.0,0.73905505]
[1719838976063,0.1203615,3481.1,3481.0,3.61178505]
[1719838976686,0.1203615,3481.1,3481.0,0.73905505]
[1719838977054,0.1203615,3481.1,3481.0,1.013]
[1719838977439,0.1203615,3481.1,3480.8,1.013]
[1719838977785,0.1203615,3481.1,3480.8,2.87287]
[1719838978288,0.1203615,3481.1,3480.7,3.88597]
[1719838978499,0.1203615,3481.1,3480.7,1.013]
[1719838978636,2.4962,3481.0,3480.7,0.43233226]
[1719838979581,2.4962,3481.0,3480.7,1.44533226]
[1719838980079,0.1203615,3481.1,3480.9,1.013]
[1719838980384,0.1203615,3481.1,3481.0,1.07044831]
[1719838980573,0.1203615,3481.1,3481.0,1.79528537]
[1719838981668,0.1203615,3481.1,3481.0,7.48329706]
[1719838982672,0.1203615,3481.1,3481.0,4.61056706]
[1719838984281,0.1203615,3481.1,3481.0,1.73783706]
[1719838984480,0.1203615,3481.1,3481.0,0.72483706]
[1719838984685,0.1203615,3481.1,3480.9,2.8728]
[1719838984902,0.1203615,3481.1,3480.7,0.43233226]
[1719838984903,2.4317615,3481.1,3480.7,0.43233226]
[1719838985057,2.4317615,3481.1,3480.7,1.013]
[1719838985762,2.4317615,3481.1,3480.4,2.87317]
[1719838986185,2.4317615,3481.1,3480.4,3.88617]
[1719838986905,2.4317615,3481.1,3480.6,1.013]
[1719838987098,2.4317615,3481.1,3480.7,0.675931]
[1719838987400,2.4317615,3481.1,3480.2,2.87336]
[1719838987893,2.4317615,3481.1,3480.3,1.013]
[1719838988062,3.4447615,3481.1,3480.2,2.87333]
[1719838988261,3.4447615,3481.1,3480.3,2.87326]
[1719838988567,3.4447615,3481.1,3480.4,0.675959]
[1719838989499,2.4891,3480.8,3480.1,2.87345]
[1719838989669,2.4891,3480.8,3480.0,2.87356]
[1719838989870,2.4891,3480.8,3480.0,3.88656]
[1719838991097,2.4891,3480.8,3480.0,2.87356]
[1719838992178,2.4891,3480.8,3479.8,2.87372]
[1719838992382,2.4891,3480.8,3479.9,0.574757]
[1719838992785,2.4891,3480.8,3479.9,3.448367]
[1719838992990,2.4891,3480.8,3480.0,1.013]
[1719838994303,2.4891,3480.8,3480.1,2.87345]
[1719838994502,2.4891,3480.8,3480.4,2.87318]
[1719838994804,2.4891,3480.8,3480.5,0.388618]
[1719838996212,2.5887615,3481.1,3480.6,0.05745522]
[1719838996543,2.5887615,3481.1,3480.9,0.5]
[1719838996544,0.1203615,3481.1,3480.9,0.5]
[1719838999062,2.2889,3481.0,3480.9,0.5]
[1719839007526,0.1203615,3481.1,3480.9,0.5]
[1719839009931,0.1203615,3481.1,3481.0,2.93017993]
[1719839010243,0.1203615,3481.1,3481.0,5.83217802]
[1719839010455,0.1203615,3481.1,3481.0,8.64746]
[1719839011072,0.1203615,3481.1,3481.0,7.63446]
[1719839011367,0.1203615,3481.1,3481.0,8.64746]
[1719839011570,0.1203615,3481.1,3481.0,9.88380613]
[1719839015356,0.1203615,3481.1,3481.0,12.75653613]
[1719839017327,2.55213239,3483.0,3481.1,1.889]
[1719839017476,2.2517,3483.0,3482.6,2.87135]
[1719839017811,2.2517,3483.0,3482.6,0.05742131]
[1719839017987,2.2517,3483.0,3482.2,2.87171]
[1719839017988,3.2647,3483.0,3482.2,2.87171]
[1719839018299,1.013,3482.8,3482.3,2.87165]
[1719839018515,3.2647,3483.0,3482.3,2.87165]
[1719839018800,2.2517,3483.0,3482.2,3.547388]
[1719839018965,1.013,3482.9,3482.2,3.547388]
[1719839019206,2.2517,3483.0,3482.2,3.547388]
[1719839019527,2.2517,3483.0,3482.3,0.7432268]
[1719839019688,2.2517,3483.0,3482.4,2.87152]
[1719839020489,2.2517,3483.0,3482.5,2.92891176]
[1719839020812,2.2517,3483.0,3482.6,0.05741955]
[1719839021028,2.2517,3483.0,3482.7,2.87133]
[1719839021537,2.2517,3483.0,3482.8,2.92864962]
[1719839021686,2.4793,3483.3,3482.8,2.92864962]
[1719839021893,2.4793,3483.3,3482.9,2.87116]
[1719839022087,2.4793,3483.3,3483.0,0.05741494]
[1719839022626,2.4793,3484.0,3483.1,0.05741012]
[1719839022795,2.4793,3484.0,3483.1,2.87095]
[1719839023214,2.4793,3484.0,3482.9,2.87114]
[1719839023530,0.24793,3483.9,3482.8,2.87119]
[1719839024160,0.24793,3483.9,3482.6,2.8714]
[1719839024161,0.24793,3483.9,3482.7,2.87132]
[1719839024546,0.24793,3483.9,3482.4,2.87156]
[1719839024711,0.24793,3483.9,3482.6,2.87141]
[1719839024917,0.24793,3483.9,3482.7,0.144]
[1719839025252,2.427,3483.7,3482.7,0.144]
[1719839025416,2.4024,3483.6,3482.7,0.144]
[1719839025622,1.08794,3483.5,3482.7,0.144]
[1719839025916,2.4024,3483.4,3482.7,0.144]
[1719839029441,2.4024,3483.4,3482.8,0.05741835]
[1719839029653,2.4024,3483.4,3482.7,0.144]
[1719839030415,2.3737,3483.6,3482.8,2.9286484]
[1719839030650,2.3737,3483.6,3482.9,0.30726484]
[1719839030863,2.3737,3483.6,3482.7,3.0153]
[1719839032156,3.0,3483.9,3482.8,2.9286136]
[1719839032357,2.4338,3483.8,3482.8,2.8712]
[1719839033075,2.4338,3483.8,3482.7,0.144]
[1719839033076,2.4338,3483.8,3482.7,3.01531]
[1719839033278,2.4338,3483.8,3482.7,0.144]
[1719839033566,0.57334687,3483.7,3482.7,0.144]
[1719839034950,0.3000337,3483.6,3482.7,0.144]
[1719839037236,0.57334687,3483.7,3482.7,0.144]
[1719839038055,2.4338,3483.8,3482.7,0.144]
[1719839038500,2.4338,3483.8,3482.8,2.87125]
[1719839038860,2.4338,3483.8,3482.7,3.01527]
[1719839039308,2.4338,3483.8,3482.9,2.8711]
[1719839039492,2.3472,3484.2,3483.1,2.87094]
[1719839039695,2.3472,3484.2,3483.2,0.57994462]
[1719839040056,2.3472,3484.2,3483.3,0.05740581]
[1719839040805,2.3472,3484.2,3483.3,2.92823581]
[1719839042257,2.3472,3484.2,3483.2,0.57994462]
[1719839042453,2.59395615,3484.2,3483.2,0.57994462]
[1719839043084,2.59395615,3484.2,3482.7,3.0153]
[1719839043289,2.59395615,3484.2,3482.9,2.87111]
[1719839043673,2.59395615,3484.2,3482.7,0.144]
[1719839043900,2.3384,3484.0,3482.7,0.144]
[1719839044101,2.3384,3484.0,3482.7,3.01532]
[1719839044273,0.5312058,3483.9,3482.7,3.603998]
[1719839044467,0.5312058,3483.9,3482.7,0.732678]
[1719839044864,2.3384,3483.8,3482.7,0.144]
[1719839045089,2.427,3483.7,3482.7,0.144]
[1719839045289,2.3384,3483.6,3482.7,0.144]
[1719839047190,2.3384,3483.6,3482.8,2.92859564]
[1719839048012,2.3384,3483.6,3482.8,2.87118]
[1719839048177,2.3384,3483.6,3482.8,3.648739]
[1719839050778,2.3384,3483.6,3482.8,0.777559]
[1719839051276,2.3384,3483.6,3482.7,0.144]
[1719839052718,3.0,3484.1,3482.7,0.144]
[1719839052719,2.4554,3483.3,3482.7,0.144]
[1719839053501,2.427,3483.0,3482.7,0.144]
[1719839053702,2.4271,3482.9,3482.7,0.144]
[1719839054085,2.91251,3482.9,3482.7,0.144]
[1719839055418,2.4226,3482.8,3482.7,0.144]
[1719839055621,5.9726,3482.8,3482.7,0.144]
[1719839055825,5.4726,3482.8,3482.7,0.144]
[1719839058123,2.4761,3482.7,3481.1,3.0]
[1719839058411,2.427,3482.4,3481.2,0.637272]
[1719839059011,2.4439,3482.3,3481.2,0.637272]
[1719839060395,2.4439,3482.3,3481.2,3.509842]
[1719839061015,2.4439,3482.3,3481.2,0.637272]
[1719839061216,2.4439,3482.3,3481.3,0.3509912]
[1719839062041,2.4439,3482.3,3481.2,0.637272]
[1719839062220,2.3905,3482.2,3480.9,0.5]
[1719839064607,2.427,3482.0,3480.9,0.5]
[1719839065960,2.72658805,3482.0,3480.9,0.5]
[1719839067040,2.427,3482.0,3480.9,0.5]
[1719839067226,2.427,3482.0,3481.0,0.337289]
[1719839067427,2.427,3482.0,3480.9,0.5]
[1719839067740,2.72652541,3482.0,3480.9,0.5]
[1719839069565,2.427,3482.0,3480.9,3.37281]
[1719839069725,2.427,3482.0,3480.7,2.37292]
[1719839070220,2.368,3482.1,3480.7,2.37292]
[1719839070420,0.29953511,3482.0,3480.8,3.697464]
[1719839071464,2.2546,3481.9,3480.8,0.824594]
[1719839073659,2.2546,3481.9,3480.6,5.873]
[1719839073660,2.2546,3481.9,3480.6,3.0]
[1719839073861,2.2546,3481.9,3480.4,2.87322]
[1719839073862,2.2546,3481.9,3480.4,5.74638]
[1719839074161,2.2546,3481.9,3480.4,2.87316]
[1719839074372,2.2546,3481.9,3480.5,2.87315]
[1719839075167,2.2546,3481.9,3480.3,2.87326]
[1719839075372,2.3354,3481.7,3480.4,3.90368285]
[1719839075581,4.7624,3481.7,3480.4,3.90368285]
[1719839075877,2.427,3481.3,3480.2,0.2902085]
[1719839076053,2.2947,3481.2,3480.2,0.2902085]
[1719839079139,2.2947,3481.2,3480.3,0.05745725]
[1719839079566,2.2947,3481.2,3480.2,0.2902085]
[1719839080278,2.2947,3481.2,3480.2,0.90658835]
[1719839083266,2.2947,3481.2,3480.2,0.2902085]
[1719839084795,2.427,3480.9,3480.2,0.2902085]
[1719839084958,2.3092,3480.8,3480.2,0.2902085]
[1719839085965,2.427,3480.9,3480.2,0.2902085]
[1719839086176,0.2427,3480.8,3480.2,0.2902085]
[1719839088998,2.4719,3480.7,3480.2,0.2902085]
[1719839090706,2.427,3480.5,3480.2,0.2902085]
[1719839090886,2.2597,3480.4,3480.2,0.2902085]
[1719839095194,2.55886077,3480.4,3480.2,0.2902085]
[1719839095524,0.49858608,3480.3,3480.2,0.2902085]
[1719839100112,2.55886077,3480.4,3480.2,0.2902085]
[1719839100910,2.2597,3480.4,3480.2,0.2902085]
[1719839101857,2.55882635,3480.4,3480.2,0.2902085]
[1719839103507,2.2597,3480.4,3480.2,0.2902085]
[1719839104087,2.55884063,3480.4,3480.2,0.2902085]
[1719839104286,0.49858406,3480.3,3480.2,0.2902085]
[1719839108408,3.49858406,3480.3,3480.2,0.2902085]
[1719839110025,5.99358406,3480.3,3480.2,0.2902085]
[1719839110224,6.68758406,3480.3,3480.2,0.2902085]
[1719839111155,2.495,3480.2,3478.7,2.349]
[1719839111355,2.427,3479.6,3478.7,2.349]
[1719839111531,2.3778,3479.5,3478.7,2.349]
[1719839112649,2.3778,3479.5,3478.2,2.3934]
[1719839114326,2.67714788,3479.5,3478.2,2.3934]
[1719839116366,2.67714788,3479.5,3477.7,2.87544]
[1719839116367,2.4629,3479.1,3478.0,0.05749028]
[1719839117866,2.4629,3479.1,3477.6,2.2862]
[1719839118067,2.427,3478.8,3477.6,2.2862]
[1719839118274,2.3306,3478.7,3477.6,2.2862]